[Event "44th Chess Olympiad Women 2022"]
[Site "Chennai"]
[Date "2022.07.30"]
[Round "2.35"]
[White "Thurner, Anya"]
[Black "Nguyen, Thu Giang"]
[Result "0-1"]
[ECO "B20"]
[WhiteElo "1619"]
[BlackElo "2119"]
[Annotator "TA"]
[PlyCount "90"]
[EventDate "2022.07.29"]
[EventType "team-tourn"]
[EventCountry "IND"]
[SourceTitle "playchess.com"]
[Source "ChessBase"]
[SourceQuality "1"]
[WhiteTeam "New Zealand"]
[BlackTeam "Australia"]
[WhiteTeamCountry "NZL"]
[BlackTeamCountry "AUS"]
[TimeControl "40/5400+30:1800+30"]

{[%evp 9,90,-32,-31,-33,-22,-61,-21,-23,-21,-20,-15,-28,-12,-47,7,-37,-30,-100,-106,-138,-143,-127,-124,-214,-139,-261,-247,-228,-165,-164,-153,-135,-116,-123,-102,-99,-101,-96,-37,-27,-27,-48,-35,-43,-17,-47,-27,-55,-57,-87,-14,-108,-75,-95,-92,-141,-141,-150,-150,-163,-74,-94,0,-135,-146,-283,-277,-393,-416,-1116,-1095,-1083,-1062,-1695,-1695,-1576,-1500,-2246,-1906,-1743,-1404,-29991,-29992]} 1. e4 {[%emt 0:00:02]} c5 {[%emt 0:00:07]} 2. b3 {[%emt 0:00:05]} g6 {[%emt 0:00:07]} 3. Bb2 {[%emt 0:00:14]} Nf6 {[%emt 0:00:10]} 4. Nc3 {[%emt 0:00:53]} Bg7 {[%emt 0:00:07]} 5. d3 {[%emt 0:00:22]} O-O {[%emt 0:00:54]} 6. g3 {[%emt 0:00:36] [#] B20: Sicilian: Unusual White 2nd moves.} d5 $146 {[%emt 0:01:24]} ({Predecessor:} 6... Nc6 7. Nge2 d6 8. Bg2 Rb8 9. f4 Ng4 10. Qd2 Nd4 11. h3 Ne3 12. Nxd4 Nxg2+ 13. Qxg2 Bxd4 {0-1 (30) Diyap,M (2066)-Reuker,J (1948) Naumburg Saale 2014}) 7. Bg2 {[%emt 0:01:57][%cal Rc3d5]} dxe4 {[%emt 0:04:54]} (7... d4 $5 {[%cal Rd4c3]} 8. Nce2 Qa5+ 9. Kf1 Nc6 $15) 8. dxe4 {[%emt 0:03:07] The position is equal.} Qa5 {[%emt 0:04:15]} 9. Nge2 {[%emt 0:19:09]} Rd8 {[%emt 0:06:38]} 10. Qc1 {[%emt 0:00:56]} Nc6 {[%emt 0:01:11]} 11. O-O {[%emt 0:01:20]} e5 {[%emt 0:02:40]} (11... Nd4 $1 $15) 12. h3 {[%emt 0:20:32]} Nd4 {[%emt 0:03:24]} (12... b5 {looks sharper.} 13. f4 b4 14. fxe5 Nxe5 15. Na4 c4) 13. Nxd4 {[%emt 0:06:16]} (13. f4 $11 {keeps the balance.}) 13... cxd4 $17 {[%emt 0:00:18]} 14. Ne2 {[%emt 0:01:31]} b6 {[%emt 0:09:45]} 15. Qe1 {[%emt 0:08:12]} Qc5 {[%emt 0:00:54]} 16. Qd2 {[%emt 0:08:23]} (16. c4 $17) 16... Ba6 {[%emt 0:02:27]} 17. Rfe1 {[%emt 0:04:08]} (17. Rfd1 $17) 17... Rac8 $19 {[%emt 0:01:16]} 18. Rac1 {[%emt 0:04:37]} h5 {[%emt 0:00:20]} 19. c4 {[%emt 0:03:52]} Bb7 {[%emt 0:15:57]} 20. Qd3 {[%emt 0:04:41]} Qe7 {[%emt 0:09:14]} 21. Rcd1 {[%emt 0:01:59]} Nd7 {[%emt 0:06:08]} 22. Nc1 {[%emt 0:02:35]} Bh6 {[%emt 0:04:42]} 23. Qe2 {[%emt 0:01:19]} Bxc1 {[%emt 0:03:17]} (23... h4 $17 {White must now prevent ...hxg3.} 24. Nd3 Re8) 24. Bxc1 $15 {[%emt 0:00:58]} Nc5 {[%emt 0:01:04]} 25. Ba3 {[%emt 0:02:40]} a5 {[%emt 0:00:39]} 26. f4 {[%emt 0:01:10]} Kg7 {[%emt 0:05:31]} 27. Bb2 {[%emt 0:01:22]} Rc7 {[%emt 0:03:17]} 28. Qf2 {[%emt 0:00:43]} f6 {[%emt 0:00:35]} 29. Qe2 {[%emt 0:00:46]} h4 {[%emt 0:01:07]} (29... a4 $17 30. Qc2 axb3 31. axb3 Kg8) 30. g4 {[%emt 0:00:29]} (30. Qg4 $11 {remains equal.}) 30... Rcd7 {[%emt 0:03:37]} 31. fxe5 {[%emt 0:00:26]} fxe5 {[%emt 0:00:09]} 32. Qf2 {[%emt 0:00:36]} (32. Ba3 $142) 32... Rf8 $17 {[%emt 0:00:59]} 33. Qe2 {[%emt 0:00:27]} Ne6 {[%emt 0:05:34]} 34. Bc1 {[%emt 0:00:32]} Rfd8 {[%emt 0:00:08]} (34... Nf4 $19 {and Black stays clearly on top.} 35. Bxf4 Rxf4) 35. Rf1 {[%emt 0:00:31][%cal Og4g5]} Rf8 {[%emt 0:02:36]} (35... g5 $17) 36. Rd3 {[%emt 0:00:30]} ({Reject} 36. Qd2 Nf4 $17) (36. Rfe1 $1 $11) 36... Rxf1+ {[%emt 0:00:17]} 37. Bxf1 {[%emt 0:00:30]} (37. Qxf1 $17 Qd6 38. Rd2) 37... Nc5 $19 {[%emt 0:00:07][%csl LRd3,LRe4][%cal Be6c5,Bc5e4,Be4d2][%mdl 32]} 38. Rd1 {[%emt 0:00:23]} (38. Qd2 $142 Kg8 39. Qh6) 38... Nxe4 {[%emt 0:01:05] [#] Strongly threatening ...Nc3.} 39. Re1 {[%emt 0:00:28]} (39. Qb2 $142 Nc3 40. Re1) 39... d3 {[%emt 0:00:20]} 40. Qe3 {[%emt 0:00:28]} d2 {[%emt 0:00:14] Active counter play!} 41. Bxd2 {[%emt 0:30:31]} Nxd2 {[%emt 0:30:05]} 42. Bg2 {[%emt 0:02:09] Inhibits Nf3+.} Bxg2 {[%emt 0:00:00]} 43. Kxg2 {[%emt 0:00:00]} e4 {[%emt 0:00:00]} 44. Qc3+ {[%emt 0:00:00]} Qf6 {[%emt 0:00:00]} 45. Qe3 {[%emt 0:00:00]} Rd3 {[%emt 0:00:00] Weighted Error Value: White=0.80/Black=0.27 (precise)} 0-1

[Event "44th Chess Olympiad Women 2022"]
[Site "Chennai"]
[Date "2022.07.30"]
[Round "2.36"]
[White "Librelato, Kathie Goulart"]
[Black "Almanzar Vasquez, Jeniffer Maria"]
[Result "1-0"]
[ECO "C78"]
[WhiteElo "2255"]
[BlackElo "1762"]
[Annotator "TA"]
[PlyCount "51"]
[EventDate "2022.07.29"]
[EventType "team-tourn"]
[EventCountry "IND"]
[SourceTitle "playchess.com"]
[Source "ChessBase"]
[SourceQuality "1"]
[WhiteTeam "Brazil"]
[BlackTeam "Dominican Republic"]
[WhiteTeamCountry "BRA"]
[BlackTeamCountry "DOM"]
[TimeControl "40/5400+30:1800+30"]

{[%evp 18,51,22,0,0,-6,-7,-5,8,7,112,110,114,117,115,109,122,100,110,95,104,109,127,124,112,112,117,100,239,233,328,318,322,323,906,891]} 1. e4 {[%emt 0:00:03]} e5 {[%emt 0:00:50]} 2. Nf3 {[%emt 0:00:19]} Nc6 {[%emt 0:00:09]} 3. Bb5 {[%emt 0:00:08]} a6 {[%emt 0:00:18]} 4. Ba4 {[%emt 0:00:05]} Nf6 {[%emt 0:00:31]} 5. O-O {[%emt 0:00:10]} Bc5 {[%emt 0:00:41]} 6. Nxe5 {[%emt 0:03:36]} Nxe5 {[%emt 0:02:46]} 7. d4 {[%emt 0:00:05]} b5 {[%emt 0:00:16]} 8. Bb3 {[%emt 0:01:25]} Bxd4 {[%emt 0:01:44]} 9. Qxd4 {[%emt 0:00:05]} d6 {[%emt 0:00:19]} 10. f4 {[%emt 0:01:42]} c5 {[%emt 0:02:36] C78: Ruy Lopez: Archangelsk and Möller Defences.} 11. Qc3 {[%emt 0:14:16]} Neg4 {[%emt 0:39:51] ...c4 is the strong threat.} ({Don't take} 11... Nxe4 12. Qe1 Bb7 13. Nc3 (13. fxe5 c4 $14) 13... Nxc3 14. Bxf7+ (14. bxc3 c4 $14) (14. Qxc3 c4 $11) 14... Kxf7 15. fxe5+ Kg8 16. Qxc3 dxe5 17. Qxe5 $14) 12. e5 {[%emt 0:18:00]} c4 {[%emt 0:08:01] The position is equal.} 13. exf6 {[%emt 0:04:48] [#]} Nxf6 $146 {[%emt 0:04:26]} (13... O-O $1 $11 14. fxg7 Re8) ({Predecessor:} 13... O-O 14. Bxc4 Qb6+ 15. Kh1 bxc4 16. fxg7 Re8 17. h3 Nf2+ 18. Kh2 Bb7 19. Qd2 Ne4 {½-½ (49) Staniszewski,J (2464)-Gavrilakis,N (2475) ICCF email 2009}) 14. Re1+ {[%emt 0:01:53]} Kf8 {[%emt 0:03:24] [#]} 15. Bxc4 {[%emt 0:01:48]} bxc4 {[%emt 0:00:22]} 16. Qxc4 {[%emt 0:00:21]} Bb7 {[%emt 0:03:30]} 17. Qd4 {[%emt 0:14:55] White is more active.} Qc7 {[%emt 0:03:11]} 18. Nd2 {[%emt 0:04:00][%cal Bb1d2,Bd2c4,Bc4e5,Be5f7,Bf7h8][%mdl 32]} Re8 {[%emt 0:02:01]} 19. Rxe8+ {[%emt 0:00:17]} Kxe8 {[%emt 0:00:15]} 20. Nc4 {[%emt 0:03:01]} Ke7 {[%emt 0:04:10]} 21. Bd2 {[%emt 0:00:44] Strongly threatening Bb4.} Qc5 {[%emt 0:06:56] Inhibits Bb4.} 22. Re1+ {[%emt 0:00:12]} Kd7 {[%emt 0:02:25]} (22... Ne4 $16 23. Qxc5 dxc5) 23. Ne5+ {[%emt 0:03:07]} Kc8 {[%emt 0:00:42]} (23... Kc7 {is a better defense.} 24. Qxc5+ dxc5 25. Nxf7 Re8 26. Ba5+ Kb8) 24. Qxc5+ $18 {[%emt 0:00:16]} dxc5 {[%emt 0:00:06]} 25. Nxf7 {[%emt 0:00:08]} Kb8 $2 {[%emt 0:02:26]} (25... Rg8 26. Re7 Kb8) 26. Nxh8 {[%emt 0:00:10] Black got outplayed after the opening.  Weighted Error Value: White=0.08 (flawless) /Black=0.42} 1-0

[Event "44th Chess Olympiad Women 2022"]
[Site "Chennai"]
[Date "2022.07.30"]
[Round "2.36"]
[White "Bail, Ellen Larissa"]
[Black "Munoz Santana, Doribel"]
[Result "1-0"]
[ECO "D02"]
[WhiteElo "1892"]
[BlackElo "1851"]
[Annotator "NA RC COMBH"]
[PlyCount "109"]
[EventDate "2022.07.29"]
[EventType "team-tourn"]
[EventCountry "IND"]
[SourceTitle "playchess.com"]
[Source "ChessBase"]
[SourceQuality "1"]
[WhiteTeam "Brazil"]
[BlackTeam "Dominican Republic"]
[WhiteTeamCountry "BRA"]
[BlackTeamCountry "DOM"]
[TimeControl "40/5400+30:1800+30"]

1. d4 {[%emt 0:00:04]} d5 {[%emt 0:00:34]} 2. Nf3 {[%emt 0:00:24]} Nf6 {[%emt 0:00:15]} 3. g3 {[%emt 0:00:18]} Nc6 {[%emt 0:01:23]} 4. Bg2 {[%emt 0:00:14]} Bf5 {[%emt 0:01:35]} 5. c4 {[%emt 0:02:16]} dxc4 {[%emt 0:19:15]} 6. Qa4 {[%emt 0:14:11]} Qd7 {[%emt 0:05:14]} 7. O-O {[%emt 0:07:55]} Bh3 {[%emt 0:19:25]} 8. Qxc4 {[%emt 0:10:12]} Bxg2 {[%emt 0:00:15]} 9. Kxg2 {[%emt 0:00:08]} Qd5 {[%emt 0:11:27]} 10. Qxd5 {[%emt 0:18:43]} Nxd5 {[%emt 0:00:08]} 11. e4 {[%emt 0:00:15]} Ndb4 {[%emt 0:03:19]} 12. Na3 {[%emt 0:25:43]} Nd3 {[%emt 0:01:35]} 13. d5 {[%emt 0:01:49]} Ncb4 {[%emt 0:17:00]} 14. Nb5 {[%emt 0:01:09]} Na6 {[%emt 0:03:23]} 15. Rd1 {[%emt 0:01:28]} Ndc5 {[%emt 0:04:12]} 16. e5 {[%emt 0:03:22]} e6 {[%emt 0:01:22]} 17. d6 {[%emt 0:01:14]} c6 {[%emt 0:00:15]} 18. Nc3 {[%emt 0:00:42]} Nd7 {[%emt 0:01:32]} 19. Re1 {[%emt 0:02:03]} Nb4 {[%emt 0:00:54]} 20. Re2 {[%emt 0:00:23]} Nd3 {[%emt 0:01:03]} 21. Bf4 {[%emt 0:01:38]} h6 {[%emt 0:02:22]} 22. Rd1 {[%emt 0:00:25]} Nb4 {[%emt 0:01:44]} 23. Nd4 {[%emt 0:01:04]} g5 {[%emt 0:00:41]} 24. Bd2 {[%emt 0:02:24]} Bg7 {[%emt 0:00:57]} 25. f4 {[%emt 0:00:16]} h5 {[%emt 0:01:26]} 26. Ncb5 {[%emt 0:01:21]} Na6 {[%emt 0:00:12]} 27. Nc3 {[%emt 0:00:32]} Nac5 {[%emt 0:00:16]} 28. b4 {[%emt 0:01:43]} Nd3 {[%emt 0:01:30]} 29. Rb1 {[%emt 0:00:44]} Bh6 {[%emt 0:00:19]} 30. Re3 {[%emt 0:01:30]} gxf4 {[%emt 0:00:16]} 31. Rxd3 {[%emt 0:00:27]} Nxe5 {[%emt 0:00:10]} 32. Rf3 {[%emt 0:00:18]} Nxf3 {[%emt 0:00:13]} 33. Nxf3 {[%emt 0:00:14]} fxg3 {[%emt 0:00:08]} 34. Bxh6 {[%emt 0:01:42]} Rxh6 {[%emt 0:00:02]} 35. hxg3 {[%emt 0:00:02]} f6 {[%emt 0:01:37]} 36. Rd1 {[%emt 0:00:13]} Kd7 {[%emt 0:00:16]} 37. Ne4 {[%emt 0:00:27]} b6 {[%emt 0:00:26]} 38. a4 {[%emt 0:00:53]} Rg8 {[%emt 0:00:38]} 39. Kf2 {[%emt 0:00:11]} Rg4 {[%emt 0:00:37]} 40. Ke3 {[%emt 0:00:25]} Rhg6 {[%emt 0:01:28]} 41. a5 {[%emt 0:30:55]} Rxe4+ {[%emt 0:13:30]} 42. Kxe4 {[%emt 0:00:00]} Rg4+ {[%emt 0:00:48]} 43. Ke3 {[%emt 0:00:00]} Rxb4 {[%emt 0:00:07]} 44. axb6 {[%emt 0:00:00]} axb6 {[%emt 0:00:03]} 45. Nh4 {[%emt 0:00:00]} Rb3+ {[%emt 0:02:57]} 46. Kf2 {[%emt 0:00:00]} Rb2+ {[%emt 0:00:28]} 47. Kf3 {[%emt 0:00:00]} b5 {[%emt 0:00:47]} 48. Ng6 {[%emt 0:00:00]} Rb3+ {[%emt 0:01:18]} 49. Kf2 {[%emt 0:00:00]} Rb2+ {[%emt 0:00:08]} 50. Ke1 {[%emt 0:00:00]} Rh2 {[%emt 0:05:49]} 51. Nf8+ {[%emt 0:00:00]} Kd8 {[%emt 0:01:32]} 52. Nxe6+ {[%emt 0:00:00]} Kd7 {[%emt 0:00:12]} 53. Nc5+ {[%emt 0:00:00]} Kd8 {[%emt 0:00:09]} 54. Rd3 {[%emt 0:00:00]} Rc2 {[%emt 0:01:08]} 55. Ne6+ {[%emt 0:00:00]} 1-0

[Event "44th Chess Olympiad Women 2022"]
[Site "Chennai"]
[Date "2022.07.30"]
[Round "2.36"]
[White "Rosario Almanzar, Raydily"]
[Black "Alboredo, Julia"]
[Result "0-1"]
[ECO "B23"]
[WhiteElo "1882"]
[BlackElo "2264"]
[Annotator "TA"]
[PlyCount "70"]
[EventDate "2022.07.29"]
[EventType "team-tourn"]
[EventCountry "IND"]
[SourceTitle "playchess.com"]
[Source "ChessBase"]
[SourceQuality "1"]
[WhiteTeam "Dominican Republic"]
[BlackTeam "Brazil"]
[WhiteTeamCountry "DOM"]
[BlackTeamCountry "BRA"]
[TimeControl "40/5400+30:1800+30"]

{[%evp 9,70,11,25,-3,1,-14,0,-4,-2,-37,-33,-47,-26,-22,-22,-46,-21,-28,-5,-14,4,-11,0,-32,-40,-35,-34,-42,-45,-48,-40,-60,-72,-72,-59,-85,-69,-160,-168,-164,-154,-188,-174,-621,-622,-814,-813,-810,-814,-811,-800,-782,-705,-658,-617,-597,-604,-605,-582,-547,-531,-831,-831]} 1. e4 {[%emt 0:00:45]} c5 {[%emt 0:00:11]} 2. Nc3 {[%emt 0:00:24]} Nc6 {[%emt 0:00:10]} 3. Bb5 {[%emt 0:01:25]} Nd4 {[%emt 0:00:07]} 4. Nf3 {[%emt 0:00:30]} a6 {[%emt 0:00:18]} 5. Bd3 {[%emt 0:00:24]} Nc6 {[%emt 0:00:35]} 6. a4 {[%emt 0:08:54] B23: Closed Sicilian: Lines without g3.} d6 {[%emt 0:00:57] [#]} 7. h3 $146 {[%emt 0:01:59]} ({Predecessor:} 7. Bc4 Nf6 8. h3 e6 9. Qe2 Be7 10. d3 O-O 11. O-O b6 12. Bg5 Bb7 13. Rad1 {0-1 (35) Lopez Gomez,J (2052)-Sivuk,V (2547) Platja d'Aro 2021}) 7... g6 {[%emt 0:01:16]} 8. O-O {[%emt 0:01:22] The position is equal.} Bg7 {[%emt 0:00:36]} 9. Qe2 {[%emt 0:02:12]} e6 {[%emt 0:02:12]} 10. Nd1 {[%emt 0:14:10]} Nge7 {[%emt 0:05:17]} 11. c3 {[%emt 0:05:08]} O-O {[%emt 0:02:48]} 12. Bc2 {[%emt 0:03:36]} Rb8 {[%emt 0:15:41]} 13. d3 {[%emt 0:11:15]} b5 {[%emt 0:00:00]} 14. axb5 {[%emt 0:00:20]} axb5 {[%emt 0:00:00]} 15. Bg5 {[%emt 0:05:06]} b4 {[%emt 0:00:00]} 16. d4 {[%emt 0:08:18]} bxc3 {[%emt 0:00:00]} (16... cxd4 {with more complications.} 17. cxd4 Nxd4 18. Nxd4 Bxd4 19. Qd2 Bg7) 17. bxc3 {[%emt 0:00:18]} cxd4 {[%emt 0:00:00]} (17... h6 {keeps more tension.} 18. Be3 cxd4 19. Nxd4 Bb7) 18. cxd4 {[%emt 0:08:49]} Nxd4 {[%emt 0:02:30]} 19. Nxd4 {[%emt 0:00:09]} Bxd4 {[%emt 0:00:07]} 20. Ra4 {[%emt 0:00:35]} Bg7 {[%emt 0:01:42]} 21. Ne3 {[%emt 0:05:04]} Bd7 {[%emt 0:10:56]} 22. Ra7 {[%emt 0:05:34]} f6 {[%emt 0:03:37]} 23. Bf4 {[%emt 0:01:47]} (23. Bh4 $1 $15) 23... Nc6 $17 {[%emt 0:02:36]} 24. Ra3 {[%emt 0:03:24]} e5 {[%emt 0:03:50]} 25. Bg3 {[%emt 0:03:02]} Nd4 $36 {[%emt 0:00:33][%mdl 2048] Black has strong initiative.} 26. Qa6 {[%emt 0:02:22]} (26. Qd2) 26... Bb5 $19 {[%emt 0:01:01] Black is clearly winning.} 27. Qa5 {[%emt 0:02:48]} Qxa5 {[%emt 0:00:19]} 28. Rxa5 {[%emt 0:00:02]} Bxf1 {[%emt 0:00:11]} 29. Kxf1 {[%emt 0:00:04]} Rfc8 {[%emt 0:00:45][%cal Ob8b1]} 30. Bd1 {[%emt 0:00:59]} Rc1 {[%emt 0:00:31] [#] Strongly threatening ...Bh6.} 31. Ke1 {[%emt 0:00:56]} Bh6 {[%emt 0:03:18] aiming for ...Rb2.} 32. Kd2 {[%emt 0:04:07]} Rbb1 {[%emt 0:00:13]} 33. Ra8+ {[%emt 0:00:19]} Kf7 {[%emt 0:00:15]} 34. Ra7+ {[%emt 0:00:28]} Kf8 {[%emt 0:00:37] [#] ( -> ...Rxd1+)} 35. Ba4 {[%emt 0:00:52]} Rc8 {[%emt 0:02:35] Prevents Ra8.  Weighted Error Value: White=0.48/Black=0.10 (very precise)} 0-1

[Event "44th Chess Olympiad Women 2022"]
[Site "Chennai"]
[Date "2022.07.30"]
[Round "2.36"]
[White "Diaz Cesar, Wilsaida Pieranlly"]
[Black "Terao, Juliana Sayumi"]
[Result "0-1"]
[ECO "A09"]
[WhiteElo "1834"]
[BlackElo "2223"]
[Annotator "TA"]
[PlyCount "48"]
[EventDate "2022.07.29"]
[EventType "team-tourn"]
[EventCountry "IND"]
[SourceTitle "playchess.com"]
[Source "ChessBase"]
[SourceQuality "1"]
[WhiteTeam "Dominican Republic"]
[BlackTeam "Brazil"]
[WhiteTeamCountry "DOM"]
[BlackTeamCountry "BRA"]
[TimeControl "40/5400+30:1800+30"]

{[%evp 9,48,-67,-64,-43,-52,-104,-61,-83,-89,-81,-10,-56,0,-13,-23,-18,-18,-20,-20,-18,-23,-89,-100,-102,-66,-203,-204,-196,-157,-166,-174,-269,-275,-277,-275,-451,-449,-443,-435,-475,-458]} 1. Nf3 {[%emt 0:00:04]} d5 {[%emt 0:00:15][%cal Bd7d5,Bd5d4][%mdl 32]} 2. c4 {[%emt 0:00:47]} d4 {[%emt 0:00:31]} 3. b4 {[%emt 0:00:07]} f6 {[%emt 0:00:32]} 4. e3 {[%emt 0:00:50]} e5 {[%emt 0:00:57]} 5. Bb2 {[%emt 0:00:27]} dxe3 $1 {[%emt 0:05:59]} (5... Bxb4 6. exd4 exd4 7. Nxd4 $11 (7. Qe2+ Kf7 $17)) 6. fxe3 {[%emt 0:02:10] A09: Réti Opening: 1 Nf3 d5 2 c4.} Bxb4 {[%emt 0:12:14]} 7. Qb3 {[%emt 0:16:55] [#]} (7. a3 $15 Be7 8. d4) 7... Qe7 $146 {[%emt 0:12:40]} ({Predecessor:} 7... Nc6 8. Bd3 Nge7 9. Be4 O-O 10. O-O Be6 11. d4 exd4 12. exd4 b5 13. Qc2 Bxc4 14. Bxh7+ {0-1 (35) Royet,G-Barros,R (2105) Barranquilla 2000}) 8. Be2 {[%emt 0:05:04] Black is slightly better.} Nh6 {[%emt 0:06:28]} 9. O-O {[%emt 0:11:36] [#]} Nf7 {[%emt 0:06:20]} ({Black should try} 9... c5 $1 $17) 10. a3 {[%emt 0:03:04]} (10. d4 $11 {is superior.}) 10... Bd6 {[%emt 0:05:09]} (10... Ba5 $1 $15) 11. Nc3 {[%emt 0:09:00][%cal Oc4c5]} c6 {[%emt 0:02:45]} 12. d4 {[%emt 0:10:04]} O-O {[%emt 0:09:36]} ({Don't play} 12... exd4 13. exd4 Bc7 14. Rae1 $16) 13. c5 {[%emt 0:07:39]} Bc7 {[%emt 0:00:07]} 14. Bc4 {[%emt 0:09:49][%cal Of3e5] aiming for Nxe5!} Kh8 {[%emt 0:17:47]} 15. Rae1 {[%emt 0:11:15] [#]} (15. Ne4 $11) 15... Nd7 $1 $17 {[%emt 0:01:33]} 16. Rf2 {[%emt 0:03:53]} b6 {[%emt 0:02:06][%cal Bb7b6,Bb6c5][%mdl 32]} 17. Ref1 {[%emt 0:03:25] White does not recover from this.} (17. cxb6 $15 axb6 18. a4) 17... bxc5 $19 {[%emt 0:03:00]} 18. Bxf7 {[%emt 0:00:52]} Qxf7 {[%emt 0:00:58]} (18... Rxf7 19. Ng5 Rf8 20. Qe6 Qxe6 21. Nxe6 $15) 19. Qxf7 {[%emt 0:00:39]} Rxf7 {[%emt 0:00:05][%cal Bf8f7,Bf7e7,Be7e6][%mdl 32]} 20. Ng5 {[%emt 0:00:43]} (20. dxe5 {was called for.} Bxe5 21. Nxe5 Nxe5 22. Rd2) 20... Re7 {[%emt 0:00:07]} ({Much less strong is} 20... fxg5 21. Rxf7 h5 22. dxc5 $18) 21. d5 {[%emt 0:00:05]} Nb6 {[%emt 0:05:48]} ({Weaker is} 21... Ba6 22. Rd1 $17) 22. dxc6 {[%emt 0:01:06]} (22. d6 Bxd6 23. Nce4) 22... Ba6 {[%emt 0:00:25] Black is clearly winning.} 23. Nge4 {[%emt 0:00:34]} Bxf1 {[%emt 0:00:29]} 24. Rxf1 {[%emt 0:00:02]} Re6 {[%emt 0:01:12] Weighted Error Value: White=0.35/Black=0.12 (very precise)} 0-1